fUSD/lending_fUSD_20251031
["ID","MTS","AMOUNT","RATE_DAILY","PERIOD"]
[392772007,1761938816705,-42908.22164156,0.00013942,2]
[392772008,1761938816729,-150.0,0.00013987,2]
[392772009,1761938816754,-150.0,0.00013987,2]
[392772010,1761938816778,-8953.67565636,0.0001399,2]
[392772011,1761938816801,-200.0,0.0001402,2]
[392772012,1761938816823,-500.0,0.00014051,2]
[392772013,1761938816848,-250.0,0.00014053,2]
[392772014,1761938816870,-1000.0,0.00014151,2]
[392772015,1761938816893,-150.0,0.00014237,2]
[392772016,1761938816915,-150.0,0.00014237,2]
[392772017,1761938816937,-150.0,0.00014237,2]
[392772018,1761938816958,-575.77664939,0.00014319,2]
[392772019,1761938816982,-5888.0,0.00014411,2]
[392772020,1761938817005,-222.58167854,0.00014479,2]
[392772021,1761938817029,-150.0,0.00014487,2]
[392772022,1761938817052,-150.0,0.00014487,2]
[392772023,1761938817072,-892.97880699,0.00014548,2]
[392772024,1761938817094,-150.0,0.00014555,2]
[392772025,1761938817118,-5888.0,0.00014556,2]
[392772026,1761938817140,-150.0,0.00014612,2]
[392772027,1761938817162,-179.32,0.00014627,2]
[392772028,1761938817185,-221.53471527,0.00014647,2]
[392772029,1761938817207,-150.0,0.00014737,2]
[392772030,1761938817227,-1263.25302795,0.00014775,2]
[392772031,1761938817248,-18929.77767637,0.00014784,2]
[392772032,1761938817269,-556.599,0.00014799,2]
[392772033,1761938817290,-6442.54284192,0.00014799,2]
[392772034,1761938818432,-192.27885808,0.00014799,2]
[392772035,1761938818454,-234.1322,0.00014799,2]
[392772036,1761938818475,-4925.32857063,0.000148,2]
[392772037,1761938818497,-987.29,0.00014868,2]
[392772038,1761938818518,-500.0,0.00014873,2]
[392772039,1761938818540,-500.0,0.00014873,2]
[392772040,1761938818562,-172.41133011,0.00014883,2]
[392772041,1761938818584,-432.2575351,0.00014898,2]
[392772042,1761938818610,-500.0,0.00014898,2]
[392772043,1761938818635,-500.0,0.00014898,2]
[392772044,1761938818660,-500.0,0.00014898,2]
[392772045,1761938818685,-500.0,0.00014898,2]
[392772046,1761938818710,-500.0,0.00014898,2]
[392772047,1761938818735,-500.0,0.00014898,2]
[392772048,1761938818762,-500.0,0.00014898,2]
[392772049,1761938818788,-500.0,0.00014898,2]
[392772050,1761938818815,-500.0,0.00014898,2]
[392772051,1761938818841,-500.0,0.00014898,2]
[392772052,1761938818867,-500.0,0.00014898,2]
[392772053,1761938818891,-500.0,0.00014898,2]
[392772054,1761938818916,-500.0,0.00014898,2]
[392772055,1761938818942,-500.0,0.00014898,2]
[392772056,1761938818968,-500.0,0.00014898,2]
[392772057,1761938819000,-500.0,0.00014898,2]
[392772058,1761938819028,-500.0,0.00014898,2]
[392772059,1761938819053,-500.0,0.00014898,2]
[392772060,1761938819078,-500.0,0.00014898,2]
[392772061,1761938819104,-500.0,0.00014898,2]
[392772062,1761938819129,-500.0,0.00014898,2]
[392772063,1761938819155,-500.0,0.00014898,2]
[392772064,1761938819180,-500.0,0.00014898,2]
[392772065,1761938819206,-500.0,0.00014898,2]
[392772066,1761938819232,-500.0,0.00014898,2]
[392772067,1761938819258,-500.0,0.00014898,2]
[392772068,1761938819283,-500.0,0.00014898,2]
[392772069,1761938819307,-500.0,0.00014898,2]
[392772070,1761938819333,-477.34780431,0.00014898,2]
[392772071,1761938819358,-500.0,0.00014898,2]
[392772072,1761938819384,-500.0,0.00014898,2]
[392772073,1761938819409,-500.0,0.00014898,2]
[392772074,1761938819434,-500.0,0.00014898,2]
[392772075,1761938819459,-500.0,0.00014898,2]
[392772076,1761938819485,-500.0,0.00014898,2]
[392772077,1761938819510,-500.0,0.00014898,2]
[392772078,1761938819535,-300.0,0.00014898,2]
[392772079,1761938819557,-279.5087,0.00014898,2]
[392772080,1761938819579,-1259.2,0.00014899,2]
[392772081,1761938819603,-34851.7396,0.000149,2]
[392772082,1761938819624,-1000.0,0.000149,2]
[392772083,1761938819647,-2500.0,0.000149,2]
[392772084,1761938819668,-1000.0,0.000149,2]
[392772085,1761938819690,-1000.0,0.000149,2]
[392772086,1761938819713,-1013.0,0.000149,2]
[392772087,1761938819735,-1000.0,0.000149,2]
[392772088,1761938819761,-1000.0,0.000149,2]
[392772089,1761938819783,-1000.0,0.000149,2]
[392772090,1761938819809,-1000.0,0.000149,2]
[392772091,1761938819833,-1000.0,0.000149,2]
[392772092,1761938819855,-165.44942246,0.000149,2]
[392772093,1761938819877,-519.57728084,0.00014904,2]
[392772094,1761938819900,-1532.8,0.00014929,2]
[392772095,1761938819922,-166.521,0.0001494,2]
[392772096,1761938819946,-2401.091,0.00014943,2]
[392772097,1761938819970,-419.2814,0.00014959,2]
[392772098,1761938819996,-2351.45,0.00014968,2]
[392772099,1761938820018,-329.46,0.00014968,2]
[392772100,1761938820040,-353.77,0.00014968,2]
[392772101,1761938820062,-597.14681547,0.00014973,2]
[392772102,1761938820085,-500.0,0.00014973,2]
[392772103,1761938820108,-371.19394992,0.00014973,2]
[392772104,1761938820130,-500.0,0.00014979,2]
[392772105,1761938820154,-407.77486373,0.00014979,2]
[392772106,1761938820175,-461.32766783,0.00014979,2]
[392772107,1761938820198,-500.0,0.00014979,2]
[392772108,1761938820221,-500.0,0.00014979,2]
[392772109,1761938820244,-558.54064946,0.00014979,2]
[392772110,1761938820266,-13240.12135206,0.0001498,2]
[392772111,1761938820363,-100000.0,0.0001498,2]
[392772112,1761938823544,-863.31857761,0.00014656,2]
[392772113,1761938823567,-150.0,0.00014897,2]
[392772114,1761938823591,-98986.68142239,0.0001498,2]
[392772115,1761938824944,-100000.0,0.0001498,2]
[392772116,1761938826059,-58851.73581873,0.0001498,2]
[392772117,1761938826082,-500.0,0.00014983,2]
[392772118,1761938826104,-500.0,0.00014983,2]
[392772119,1761938826127,-514.42463678,0.00014983,2]
[392772120,1761938826150,-150.0,0.00014986,2]
[392772121,1761938826175,-150.0,0.00014986,2]
[392772122,1761938826199,-150.0,0.00014986,2]
[392772123,1761938826222,-150.0,0.00014986,2]
[392772124,1761938826245,-150.0,0.00014986,2]
[392772125,1761938826268,-150.0,0.00014986,2]
[392772126,1761938826292,-150.0,0.00014986,2]
[392772127,1761938826317,-150.0,0.00014986,2]
[392772128,1761938826339,-1062.10424787,0.00014989,2]
[392772129,1761938826362,-462.47119326,0.00014989,2]
[392772130,1761938826385,-36909.26410336,0.00014989,2]
[392772131,1761938828423,-6157.73958414,0.00014989,2]
[392772132,1761938828447,-500.0,0.0001499,2]
[392772133,1761938828473,-500.0,0.0001499,2]
[392772134,1761938828496,-500.0,0.0001499,2]
[392772135,1761938828519,-500.0,0.0001499,2]
[392772136,1761938828544,-500.0,0.0001499,2]
[392772137,1761938828568,-500.0,0.0001499,2]
[392772138,1761938828591,-500.0,0.0001499,2]
[392772139,1761938828615,-500.0,0.0001499,2]
[392772140,1761938828638,-500.0,0.0001499,2]
[392772141,1761938828660,-500.0,0.0001499,2]
[392772142,1761938828686,-500.0,0.0001499,2]
[392772143,1761938828709,-500.0,0.0001499,2]
[392772144,1761938828733,-500.0,0.0001499,2]
[392772145,1761938828756,-500.0,0.0001499,2]
[392772146,1761938828780,-500.0,0.0001499,2]
[392772147,1761938828805,-500.0,0.0001499,2]
[392772148,1761938828832,-500.0,0.0001499,2]
[392772149,1761938828858,-391.0852009,0.0001499,2]
[392772150,1761938828882,-500.0,0.0001499,2]
[392772151,1761938828907,-500.0,0.0001499,2]
[392772152,1761938828934,-563.72792144,0.0001499,2]
[392772153,1761938828960,-500.0,0.0001499,2]
[392772154,1761938828984,-500.0,0.0001499,2]
[392772155,1761938829008,-560.07491628,0.0001499,2]
[392772156,1761938829032,-150.0,0.0001499,2]
[392772157,1761938829055,-150.0,0.0001499,2]
[392772158,1761938829078,-200.0,0.0001499,2]
[392772159,1761938829105,-500.0,0.0001499,2]
[392772160,1761938829130,-150.0,0.0001499,2]
[392772161,1761938829153,-262.37533984,0.0001499,2]
[392772162,1761938829179,-662.0,0.0001499,2]
[392772163,1761938829203,-150.0,0.0001499,2]
[392772164,1761938829227,-150.0,0.0001499,2]
[392772165,1761938829250,-500.0,0.0001499,2]
[392772166,1761938829272,-500.0,0.0001499,2]
[392772167,1761938829295,-500.0,0.0001499,2]
[392772168,1761938829317,-500.0,0.0001499,2]
[392772169,1761938829340,-555.64534085,0.0001499,2]
[392772170,1761938829363,-500.0,0.0001499,2]
[392772171,1761938829386,-150.0,0.0001499,2]
[392772172,1761938829409,-186.20896359,0.0001499,2]
[392772173,1761938829432,-150.0,0.0001499,2]
[392772174,1761938829454,-150.0,0.0001499,2]
[392772175,1761938829476,-150.0,0.0001499,2]
[392772176,1761938829497,-500.0,0.0001499,2]
[392772177,1761938829519,-500.0,0.0001499,2]
[392772178,1761938829541,-574.12855637,0.00014991,2]
[392772179,1761938829563,-500.0,0.00014999,2]
[392772180,1761938829584,-328.84,0.00014999,2]
[392772181,1761938829607,-500.0,0.00014999,2]
[392772182,1761938829628,-500.0,0.00014999,2]
[392772183,1761938829651,-292.18287669,0.00014999,2]
[392772184,1761938829674,-500.0,0.00014999,2]
[392772185,1761938829696,-423.51791763,0.00014999,2]
[392772186,1761938829718,-512.11063858,0.00014999,2]
[392772187,1761938829739,-500.0,0.00014999,2]
[392772188,1761938829765,-500.0,0.00014999,2]
[392772189,1761938829787,-500.0,0.00014999,2]
[392772190,1761938829811,-500.0,0.00014999,2]
[392772191,1761938829834,-500.0,0.00014999,2]
[392772192,1761938829856,-500.0,0.00014999,2]
[392772193,1761938829878,-500.0,0.00014999,2]
[392772194,1761938829899,-320.58430048,0.00014999,2]
[392772195,1761938829921,-500.0,0.00014999,2]
[392772196,1761938829943,-500.0,0.00014999,2]
[392772197,1761938829964,-500.0,0.00014999,2]
[392772198,1761938829986,-500.0,0.00014999,2]
[392772199,1761938830009,-500.0,0.00014999,2]
[392772200,1761938830030,-500.0,0.00014999,2]
[392772201,1761938830051,-500.0,0.00014999,2]
[392772202,1761938830072,-526.52355523,0.00014999,2]
[392772203,1761938830095,-1730.81,0.00014999,2]
[392772204,1761938830119,-1730.81,0.00014999,2]
[392772205,1761938830141,-1730.81,0.00014999,2]
[392772206,1761938830164,-1730.81,0.00014999,2]
[392772207,1761938830186,-1730.81,0.00014999,2]
[392772208,1761938830209,-1730.81,0.00014999,2]
[392772209,1761938830232,-1730.81,0.00014999,2]
[392772210,1761938830255,-1730.81,0.00014999,2]
[392772211,1761938830278,-1730.81,0.00014999,2]
[392772212,1761938830302,-1730.81,0.00014999,2]
[392772213,1761938830328,-1730.81,0.00014999,2]
[392772214,1761938830352,-1730.81,0.00014999,2]
[392772215,1761938830377,-1730.81,0.00014999,2]
[392772216,1761938830400,-1730.81,0.00014999,2]
[392772217,1761938830423,-1730.81,0.00014999,2]
[392772218,1761938830445,-1730.81,0.00014999,2]
[392772219,1761938830468,-1730.81,0.00014999,2]
[392772220,1761938830491,-33209.48488798,0.00014999,2]
[392772221,1761938830768,-49739.08735672,0.00014999,2]
[392772222,1761938830791,-500.0,0.00014999,2]
[392772223,1761938830816,-13540.2973046,0.00014999,2]
[392772224,1761938830840,-1893.0,0.00015,2]
[392772225,1761938830866,-934327.61533868,0.00015,2]
[392772226,1761938835650,183.7137712,0.0001305,2]
[392772227,1761938841119,-24669.6303,0.0001489,2]
[392772228,1761938841148,-574.12855637,0.00014891,2]
[392772229,1761938841172,-500.0,0.00014999,2]
[392772230,1761938841197,-474256.24114363,0.00015,2]
[392772231,1761938843553,-17000.0,0.00015,2]
[392772232,1761938867759,894.99792914,0.00013,15]
[392772233,1761938867793,8681.36467659,0.00013,15]
[392772250,1761938911947,2254.66169599,0.0001421,7]
[392772263,1761938991873,492.28,0.00014464,3]
[392772280,1761939032357,-250.0,0.00013984,2]
[392772281,1761939032412,-151.45,0.00013984,2]
[392772282,1761939032421,-248.55,0.00014564,2]
[392772312,1761939032927,-1176.45,0.00014564,2]
[392772314,1761939032937,-292.4522194,0.00014584,2]
[392772316,1761939032946,-2000.0,0.00014588,2]
[392772318,1761939032956,-1425.0,0.0001464,2]
[392772320,1761939032965,-1425.0,0.00014643,2]
[392772346,1761939033205,-1425.0,0.00014653,2]
[392772349,1761939033222,-1200.0,0.00014683,2]
[392772351,1761939033232,-6625.2234,0.00014684,2]
[392772353,1761939033241,-1425.0,0.00014721,2]
[392772355,1761939033250,-252.04960677,0.00014763,2]
[392772357,1761939033262,-747.95039323,0.00014763,2]
[392772359,1761939033271,-300.0,0.00014798,2]
[392772361,1761939033281,-68.72960677,0.00014798,2]
[392772363,1761939033293,-231.27039323,0.00014798,2]
[392772365,1761939033304,-1736.7171,0.00014799,2]
[392772367,1761939033313,-1000.0,0.00014803,2]
[392772369,1761939033322,-169.1884362,0.0001485,2]
[392772371,1761939033334,-1084.2588138,0.0001485,2]
[392772373,1761939033343,-651.8301263,0.00014868,2]
[392772376,1761939033366,-801.79415419,0.00014868,2]
[392772378,1761939033377,-337.69361951,0.00014868,2]
[392772380,1761939033386,-939.55642233,0.000149,2]
[392772382,1761939033396,-900.0,0.000149,2]
[392772384,1761939033405,-1396.91970162,0.000149,2]
[392772386,1761939033415,-172.4113301,0.000149,2]
[392772388,1761939033424,-206.81177808,0.000149,2]
[392772390,1761939033433,-500.95705604,0.00014973,2]
[392772392,1761939033443,-500.0,0.00014973,2]
[392772394,1761939033453,-500.0,0.00014973,2]
[392772396,1761939033462,-500.0,0.00014973,2]
[392772398,1761939033471,-374.54110567,0.00014973,2]
[392772400,1761939033480,-500.0,0.00014973,2]
[392772402,1761939033489,-500.0,0.00014973,2]
[392772404,1761939033498,-1000.0,0.00014979,2]
[392772406,1761939033508,-1253.44725,0.0001498,2]
[392772408,1761939033517,-151.0,0.00014997,2]
[392772410,1761939033527,-504.82,0.00014998,2]
[392772412,1761939033536,-150.0,0.00014998,2]
[392772414,1761939033547,-1200.0,0.00014999,2]
[392772416,1761939033556,-382.0954582,0.00014999,2]
[392772418,1761939033565,-500.0,0.00014999,2]
[392772420,1761939033574,-333.98174571,0.00014999,2]
[392772422,1761939033583,-500.0,0.00014999,2]
[392772424,1761939033592,-608.6540078,0.00014999,2]
[392772426,1761939033602,-495.51437203,0.00014999,2]
[392772428,1761939033611,-192.99811717,0.00014999,2]
[392772430,1761939033620,-500.0,0.00014999,2]
[392772432,1761939033630,-500.0,0.00014999,2]
[392772434,1761939033640,-500.0,0.00014999,2]
[392772436,1761939033649,-500.0,0.00014999,2]
[392772438,1761939033658,-500.0,0.00014999,2]
[392772440,1761939033668,-500.0,0.00014999,2]
[392772442,1761939033677,-500.0,0.00014999,2]
[392772444,1761939033686,-500.0,0.00014999,2]
[392772446,1761939033696,-500.0,0.00014999,2]
[392772448,1761939033706,-500.0,0.00014999,2]
[392772450,1761939033715,-500.0,0.00014999,2]
[392772452,1761939033723,-500.0,0.00014999,2]
[392772454,1761939033733,-500.0,0.00014999,2]
[392772456,1761939033742,-500.0,0.00014999,2]
[392772458,1761939033751,-500.0,0.00014999,2]
[392772460,1761939033761,-500.0,0.00014999,2]
[392772462,1761939033770,-500.0,0.00014999,2]
[392772464,1761939033779,-500.0,0.00014999,2]
[392772466,1761939033789,-500.0,0.00014999,2]
[392772468,1761939033802,-500.0,0.00014999,2]
[392772470,1761939033816,-500.0,0.00014999,2]
[392772472,1761939033825,-500.0,0.00014999,2]
[392772474,1761939033834,-500.0,0.00014999,2]
[392772476,1761939033844,-500.0,0.00014999,2]
[392772478,1761939033854,-277.14546359,0.00014999,2]
[392772480,1761939033864,-500.0,0.00014999,2]
[392772482,1761939033873,-504.82,0.00014999,2]
[392772484,1761939033884,-39.90196822,0.00014999,2]
[392772486,1761939033897,-464.91803178,0.00014999,2]
[392772487,1761939033906,-504.82,0.00014999,2]
[392772488,1761939033915,-504.82,0.00014999,2]
[392772489,1761939033924,-504.82,0.00014999,2]
[392772490,1761939033933,-504.82,0.00014999,2]
[392772491,1761939033942,-504.82,0.00014999,2]
[392772492,1761939033952,-504.82,0.00014999,2]
[392772493,1761939033960,-504.82,0.00014999,2]
[392772494,1761939033969,-504.82,0.00014999,2]
[392772495,1761939033978,-504.82,0.00014999,2]
[392772496,1761939033986,-504.82,0.00014999,2]
[392772497,1761939033995,-504.82,0.00014999,2]
[392772499,1761939034005,-504.82,0.00014999,2]
[392772501,1761939034014,-504.82,0.00014999,2]
[392772503,1761939034023,-504.82,0.00014999,2]
[392772505,1761939034033,-504.82,0.00014999,2]
[392772507,1761939034045,-500.0,0.00014999,2]
[392772509,1761939034054,-500.0,0.00014999,2]
[392772511,1761939034063,-500.0,0.00014999,2]
[392772513,1761939034073,-500.0,0.00014999,2]
[392772514,1761939034082,-155.68596964,0.00014999,2]
[392772516,1761939034091,-500.0,0.00014999,2]
[392772518,1761939034100,-500.0,0.00014999,2]
[392772521,1761939034110,-500.0,0.00014999,2]
[392772522,1761939034119,-500.0,0.00014999,2]
[392772524,1761939034129,-500.0,0.00014999,2]
[392772526,1761939034138,-500.0,0.00014999,2]
[392772528,1761939034147,-500.0,0.00014999,2]
[392772530,1761939034156,-500.0,0.00014999,2]
[392772532,1761939034166,-500.0,0.00014999,2]
[392772534,1761939034175,-500.0,0.00014999,2]
[392772536,1761939034184,-500.0,0.00014999,2]
[392772538,1761939034194,-500.0,0.00014999,2]
[392772540,1761939034203,-500.0,0.00014999,2]
[392772542,1761939034213,-500.0,0.00014999,2]
[392772545,1761939034223,-500.0,0.00014999,2]
[392772547,1761939034232,-500.0,0.00014999,2]
[392772549,1761939034241,-500.0,0.00014999,2]
[392772551,1761939034251,-500.0,0.00014999,2]
[392772553,1761939034261,-500.0,0.00014999,2]
[392772555,1761939034270,-300.0,0.00014999,2]
[392772557,1761939034279,-500.0,0.00014999,2]
[392772559,1761939034289,-500.0,0.00014999,2]
[392772562,1761939034308,-500.0,0.00014999,2]
[392772564,1761939034321,-39288.39723401,0.00015,2]
[392772566,1761939034333,-95292.81837956,0.00015,2]
[392772569,1761939034345,-5194.9502448,0.00015,2]
[392772770,1761939036284,-4742.171742,0.00015,2]
[392772773,1761939036297,-511.2204005,0.00015,2]
[392772775,1761939036308,-2408.07999342,0.00015,2]
[392772980,1761939038307,-110733.43285978,0.00015,2]
[392772982,1761939038320,-684.41055845,0.00015,2]
[392772985,1761939038331,-4003.07818077,0.00015,2]
[392772987,1761939038344,-2355.8003685,0.00015,2]
[392772998,1761939038436,-1111.4103,0.00015,2]
[392773008,1761939038524,-2265491.15949067,0.00015,2]
[392773010,1761939038534,-137008.0210966,0.00015,2]
[392773012,1761939038544,-48473.4202213,0.00015,2]
[392773014,1761939038555,-3049.3228725,0.00015,2]
[392773016,1761939038566,-9047.4101237,0.00015,2]
[392773018,1761939038575,-955.2882065,0.00015,2]
[392773020,1761939038585,-2534.5900923,0.00015,2]
[392773022,1761939038594,-185.75904182,0.00015,2]
[392773024,1761939038605,-1920361.614195,0.00015,2]
[392773026,1761939038615,-155.805714,0.00015,2]
[392773028,1761939038624,-151.0,0.00015,2]
[392773030,1761939038637,-258.91022,0.00015,2]
[392773032,1761939038646,-151.0,0.00015,2]
[392773033,1761939038655,-2027.73488218,0.00015,2]
[392773034,1761939038664,-151.0,0.00015,2]
[392773035,1761939038673,-151.0,0.00015,2]
[392773036,1761939038682,-151.0,0.00015,2]
[392773037,1761939038691,-151.0,0.00015,2]
[392773038,1761939038701,-151.0,0.00015,2]
[392773039,1761939038710,-151.0,0.00015,2]
[392773040,1761939038719,-151.0,0.00015,2]
[392773042,1761939038728,-151.0,0.00015,2]
[392773043,1761939038739,-151.0,0.00015,2]
[392773046,1761939038751,-151.0,0.00015,2]
[392773048,1761939038761,-235.555324,0.00015,2]
[392773050,1761939038770,-170.146387,0.00015,2]
[392773052,1761939038781,-235.555324,0.00015,2]
[392773054,1761939038790,-235.555324,0.00015,2]
[392773056,1761939038800,-971.271533,0.00015,2]
[392773057,1761939038814,-235.555324,0.00015,2]
[392773059,1761939038823,-151.0,0.00015,2]
[392773061,1761939038833,-971.271533,0.00015,2]
[392773063,1761939038843,-971.271533,0.00015,2]
[392773066,1761939038854,-151.0,0.00015,2]
[392773067,1761939038864,-971.271533,0.00015,2]
[392773069,1761939038874,-7893.81958783,0.00015,2]
[392773072,1761939038885,-151.0,0.00015,2]
[392773074,1761939038896,-151.0,0.00015,2]
[392773076,1761939038906,-212.754637,0.00015,2]
[392773078,1761939038915,-151.0,0.00015,2]
[392773080,1761939038925,-212.754637,0.00015,2]
[392773082,1761939038934,-212.754637,0.00015,2]
[392773084,1761939038944,-212.754637,0.00015,2]
[392773086,1761939038953,-151.0,0.00015,2]
[392773088,1761939038963,-151.0,0.00015,2]
[392773090,1761939038973,-208.137045,0.00015,2]
[392773092,1761939038984,-2310873.30243194,0.00015,2]
[392773207,1761939040440,-8655.34028696,0.00015,2]
[392773208,1761939040452,-718.81267108,0.00015,2]
[392773209,1761939040568,-819.69687097,0.00015,2]
[392773210,1761939040591,-404.95500358,0.00015,2]
[392773211,1761939040650,-11090.43232308,0.00015,2]
[392773212,1761939040709,-3091.80275674,0.00015,2]
[392773213,1761939040728,-1806.17092942,0.00015,2]
[392773214,1761939040740,-2638.99415289,0.00015,2]
[392773215,1761939040751,-476.61748015,0.00015,2]
[392773216,1761939040762,-2746.0074897,0.00015,2]
[392773222,1761939043552,-500.0,0.00014998,2]
[392773223,1761939043561,-496.59902491,0.00015,2]
[392773224,1761939043635,-151081.10398279,0.00015,2]
[392773262,1761939050795,-989.6133357,0.00015,2]
[392773263,1761939050818,-5128.47870955,0.00015,2]
[392773264,1761939050829,-328.23749287,0.00015,2]
[392773265,1761939050843,-5574.786,0.00015,2]
[392773266,1761939050854,-27022.58718086,0.00015,2]
[392773268,1761939263057,690.7,0.00014023,2]
[392773269,1761939310570,964.71,0.00013978,2]
[392773271,1761939442385,9.59,0.00013886,2]
[392773272,1761939442433,1665.0,0.00013886,2]
[392773273,1761939442481,1076.41,0.00013886,2]
[392773275,1761939565532,151.0,0.0003,120]
[392773276,1761939572393,477.53,6.924e-05,2]
[392773277,1761939572694,111.06,7.288e-05,2]
[392773278,1761939572723,366.47,7.288e-05,2]
[392773279,1761939572925,477.53,7.652e-05,2]
[392773280,1761939573126,477.53,8.017e-05,2]
[392773281,1761939573789,343.47,8.381e-05,2]
[392773282,1761939573816,134.06,8.381e-05,2]
[392773283,1761939573885,477.53,8.746e-05,2]
[392773284,1761939573957,477.53,9.11e-05,2]
[392773285,1761939574378,477.53,9.475e-05,2]
[392773286,1761939574448,98.35,9.839e-05,2]
[392773287,1761939574476,379.18,9.839e-05,2]
[392773288,1761939574624,477.53,0.00010203,2]
[392773289,1761939574854,477.53,0.00010568,2]
[392773290,1761939575085,330.76,0.00010932,2]
[392773291,1761939575111,146.77,0.00010932,2]
[392773292,1761939575305,477.53,0.00011297,2]
[392773293,1761939575537,477.53,0.00011661,2]
[392773294,1761939575735,477.53,0.00012025,2]
[392773295,1761939575945,85.64,0.0001239,2]
[392773296,1761939575970,332.23989253,0.0001239,2]
[392773297,1761939575993,59.65010747,0.0001239,2]
[392773298,1761939576153,477.53,0.00012754,2]
[392773299,1761939576356,477.53,0.00013119,2]
[392773300,1761939576565,477.53,0.00013483,2]
[392773302,1761939717142,565.0,0.00030137,120]
[392773303,1761939779934,999.0,0.00013791,3]
[392773304,1761939910696,150.0,0.00013488,2]
[392773305,1761939910842,150.0,0.00013488,2]
[392773306,1761939911028,150.0,0.00013488,2]
[392773307,1761939913678,150.0,0.00013488,2]
[392773308,1761939918408,150.0,0.00013488,2]
[392773309,1761939925112,150.0,0.00013488,2]
[392773310,1761939925155,150.0,0.00013488,2]
[392773311,1761939925246,150.79627063,0.00013488,2]
[392773312,1761939925722,150.0,0.00013488,2]
[392773313,1761939931442,253.12710627,0.00013488,2]
[392773314,1761939931532,150.0,0.00013488,2]
[392773315,1761939931705,150.0,0.00013488,2]
[392773316,1761939932969,150.0,0.00013488,2]
[392773317,1761939945729,264.8026421,0.00013488,2]
[392773318,1761939968019,2825.84993,7.945e-05,2]
[392773320,1761940043950,176.43,0.00011011,2]
[392773321,1761940056681,-166.66666666,0.00013704,2]
[392773322,1761940056702,-0.00288529,0.00013763,2]
[392773325,1761940118638,-195.0,0.00013755,2]
[392773326,1761940120817,-500.0,0.00013755,2]
[392773327,1761940123029,-170.00218383,0.00013755,2]
[392773328,1761940123789,-195.0,0.00013755,2]
[392773329,1761940126310,-500.0,0.00013755,2]
[392773330,1761940128903,-170.00218383,0.00013755,2]
[392773331,1761940148645,-486.22977505,0.00013686,2]
[392773332,1761940150776,-353.29253733,0.00013686,2]
[392773333,1761940153206,-61.77419362,0.00013686,2]
[392773334,1761940153227,-250.0,0.00013721,2]
[392773335,1761940153249,-195.0,0.00013721,2]
[392773346,1761940231452,-1881.31563234,0.00013755,2]
[392773348,1761940231461,-1852.41711471,0.00013763,2]
[392773350,1761940231469,-237.66630996,0.00013763,2]
[392773352,1761940231479,-264.8026421,0.00013763,2]
[392773353,1761940231489,-284.0,0.00013803,2]
[392773354,1761940231499,-150.0,0.00013804,2]
[392773355,1761940231509,-477.53,0.00013847,2]
[392773356,1761940231518,-150.0,0.00013862,2]
[392773357,1761940231527,-2280.0,0.00014047,2]
[392773358,1761940231544,-129.10501382,0.00014208,2]
[392773359,1761940231559,-170.89498618,0.00014208,2]
[392773360,1761940231569,-1428.33251749,0.00014209,2]